[Event "January 9 Late 2024"]
[Site "https://www.chess.com"]
[Date "2024.01.09"]
[Round "1"]
[White "Bernat, David"]
[Black "Lund, Gunnar"]
[Result "0-1"]
[Board "147"]
[TimeControl "180+1"]
[WhiteFideId "2099225"]
[BlackFideId "1520814"]
[WhiteElo "2361"]
[BlackElo "2675"]
[WhiteTeam "USA"]
[BlackTeam "NOR"]
[WhiteClock "0:00:03"]
[BlackClock "0:00:17"]

1. c4 {[%clk 0:02:59]}  e6 {[%clk 0:02:57]} 2. e4 {[%clk 0:02:59]}  d5 {[%clk 0:02:55]} 3. cxd5 {[%clk 0:03:00]}  exd5 {[%clk 0:02:56]} 4. exd5 {[%clk 0:03:00]}  Nf6 {[%clk 0:02:56]} 5. Bb5+ {[%clk 0:03:00]}  Bd7 {[%clk 0:02:55]} 6. Bc4 {[%clk 0:03:00]}  Be7 {[%clk 0:02:54]} 7. Nf3 {[%clk 0:03:00]}  Bg4 {[%clk 0:02:55]} 8. Nc3 {[%clk 0:02:59]}  O-O {[%clk 0:02:55]} 9. h3 {[%clk 0:02:59]}  Bh5 {[%clk 0:02:54]} 10. g4 {[%clk 0:02:59]}  Bg6 {[%clk 0:02:55]} 11. O-O {[%clk 0:02:59]}  Nbd7 {[%clk 0:02:55]} 12. Re1 {[%clk 0:02:53]}  Nb6 {[%clk 0:02:54]} 13. Bb3 {[%clk 0:02:54]}  Re8 {[%clk 0:02:55]} 14. d4 {[%clk 0:02:47]}  Nfxd5 {[%clk 0:02:55]} 15. Ne5 {[%clk 0:02:46]}  a5 {[%clk 0:02:37]} 16. Qf3 {[%clk 0:02:44]}  c6 {[%clk 0:02:31]} 17. Bd2 {[%clk 0:02:28]}  a4 {[%clk 0:02:24]} 18. Bxd5 {[%clk 0:02:22]}  Nxd5 {[%clk 0:02:24]} 19. Nxd5 {[%clk 0:02:22]}  Qxd5 {[%clk 0:02:24]} 20. Qxd5 {[%clk 0:02:22]}  cxd5 {[%clk 0:02:25]} 21. Rac1 {[%clk 0:02:08]}  Bd6 {[%clk 0:02:24]} 22. Nxg6 {[%clk 0:01:57]}  hxg6 {[%clk 0:02:23]} 23. Kg2 {[%clk 0:01:45]}  f6 {[%clk 0:02:18]} 24. Re3 {[%clk 0:01:20]}  Kf7 {[%clk 0:02:18]} 25. Rce1 {[%clk 0:01:18]}  Rxe3 {[%clk 0:02:17]} 26. Rxe3 {[%clk 0:01:18]}  Rc8 {[%clk 0:02:16]} 27. Rc3 {[%clk 0:01:17]}  Re8 {[%clk 0:02:16]} 28. Be3 {[%clk 0:01:13]}  Ke6 {[%clk 0:02:12]} 29. b3 {[%clk 0:01:10]}  Ra8 {[%clk 0:02:08]} 30. bxa4 {[%clk 0:01:01]}  Rxa4 {[%clk 0:02:08]} 31. Rb3 {[%clk 0:01:02]}  Ra7 {[%clk 0:02:07]} 32. a4 {[%clk 0:00:57]}  Kd7 {[%clk 0:02:07]} 33. Kf3 {[%clk 0:00:36]}  Bc7 {[%clk 0:02:02]} 34. Rb5 {[%clk 0:00:35]}  Ke6 {[%clk 0:01:56]} 35. Bd2 {[%clk 0:00:20]}  Bd6 {[%clk 0:01:34]} 36. Bb4 {[%clk 0:00:15]}  Bxb4 {[%clk 0:01:21]} 37. Rxb4 {[%clk 0:00:16]}  Kd6 {[%clk 0:01:22]} 38. Kf4 {[%clk 0:00:14]}  Kc6 {[%clk 0:01:21]} 39. h4 {[%clk 0:00:14]}  Ra8 {[%clk 0:01:21]} 40. h5 {[%clk 0:00:14]}  gxh5 {[%clk 0:01:18]} 41. gxh5 {[%clk 0:00:15]}  Re8 {[%clk 0:00:58]} 42. Kf5 {[%clk 0:00:14]}  Re4 {[%clk 0:00:58]} 43. Kg6 {[%clk 0:00:12]}  Rg4+ {[%clk 0:00:58]} 44. Kf7 {[%clk 0:00:09]}  Rg5 {[%clk 0:00:58]} 45. a5 {[%clk 0:00:08]}  Rxh5 {[%clk 0:00:57]} 46. Kxg7 {[%clk 0:00:08]}  Rf5 {[%clk 0:00:57]} 47. Kg6 {[%clk 0:00:08]}  Rxf2 {[%clk 0:00:57]} 48. Rb6+ {[%clk 0:00:09]}  Kc7 {[%clk 0:00:49]} 49. Rxf6 {[%clk 0:00:10]}  Ra2 {[%clk 0:00:48]} 50. Rf7+ {[%clk 0:00:08]}  Kc6 {[%clk 0:00:42]} 51. Rf6+ {[%clk 0:00:09]}  Kb5 {[%clk 0:00:39]} 52. Rb6+ {[%clk 0:00:09]}  Kc4 {[%clk 0:00:40]} 53. Rxb7 {[%clk 0:00:09]}  Rxa5 {[%clk 0:00:40]} 54. Kf5 {[%clk 0:00:09]}  Kxd4 {[%clk 0:00:37]} 55. Ke6 {[%clk 0:00:09]}  Ra6+ {[%clk 0:00:37]} 56. Kf5 {[%clk 0:00:09]}  Ra1 {[%clk 0:00:34]} 57. Ke6 {[%clk 0:00:09]}  Ke4 {[%clk 0:00:31]} 58. Rb5 {[%clk 0:00:08]}  d4 {[%clk 0:00:30]} 59. Re5+ {[%clk 0:00:08]}  Kd3 {[%clk 0:00:31]} 60. Rd5 {[%clk 0:00:07]}  Re1+ {[%clk 0:00:27]} 61. Kf5 {[%clk 0:00:08]}  Kc3 {[%clk 0:00:25]} 62. Rc5+ {[%clk 0:00:08]}  Kd2 {[%clk 0:00:26]} 63. Kf4 {[%clk 0:00:07]}  d3 {[%clk 0:00:25]} 64. Kf3 {[%clk 0:00:08]}  Rf1+ {[%clk 0:00:25]} 65. Ke4 {[%clk 0:00:08]}  Rf8 {[%clk 0:00:26]} 66. Rd5 {[%clk 0:00:08]}  Re8+ {[%clk 0:00:26]} 67. Kf3 {[%clk 0:00:08]}  Kc2 {[%clk 0:00:25]} 68. Rc5+ {[%clk 0:00:09]}  Kd1 {[%clk 0:00:25]} 69. Rd5 {[%clk 0:00:09]}  d2 {[%clk 0:00:25]} 70. Kf2 {[%clk 0:00:09]}  Rf8+ {[%clk 0:00:18]} 71. Ke3 {[%clk 0:00:09]}  Ke1 {[%clk 0:00:18]} 72. Rh5 {[%clk 0:00:07]}  Re8+ {[%clk 0:00:18]} 73. Kf4 {[%clk 0:00:03]}  d1=Q {[%clk 0:00:17]} 0-1

[Event "January 9 Late 2024"]
[Site "https://www.chess.com"]
[Date "2024.01.09"]
[Round "1"]
[White "Hoffmann, Asa"]
[Black "Hua, Lefong"]
[Result "1-0"]
[Board "149"]
[TimeControl "180+1"]
[WhiteFideId "2001470"]
[BlackFideId "2602253"]
[WhiteElo "2358"]
[BlackElo "2675"]
[WhiteTeam "USA"]
[BlackTeam "CAN"]
[WhiteClock "0:00:05"]
[BlackClock "0:00:17"]

1. d4 {[%clk 0:02:56]}  Nf6 {[%clk 0:03:00]} 2. Bg5 {[%clk 0:02:51]}  g6 {[%clk 0:03:00]} 3. Nc3 {[%clk 0:02:51]}  d5 {[%clk 0:02:59]} 4. f3 {[%clk 0:02:50]}  Bg7 {[%clk 0:02:55]} 5. e4 {[%clk 0:02:50]}  dxe4 {[%clk 0:02:55]} 6. fxe4 {[%clk 0:02:50]}  O-O {[%clk 0:02:55]} 7. Nf3 {[%clk 0:02:49]}  Bg4 {[%clk 0:02:49]} 8. Qd2 {[%clk 0:02:46]}  Nc6 {[%clk 0:02:47]} 9. O-O-O {[%clk 0:02:46]}  Bxf3 {[%clk 0:02:40]} 10. gxf3 {[%clk 0:02:46]}  e5 {[%clk 0:02:41]} 11. d5 {[%clk 0:02:38]}  Nd4 {[%clk 0:02:41]} 12. Bg2 {[%clk 0:02:32]}  Qd7 {[%clk 0:02:34]} 13. h4 {[%clk 0:02:31]}  Nh5 {[%clk 0:02:32]} 14. Bh6 {[%clk 0:02:25]}  Bxh6 {[%clk 0:02:27]} 15. Qxh6 {[%clk 0:02:24]}  Nf4 {[%clk 0:02:27]} 16. Bf1 {[%clk 0:01:58]}  f6 {[%clk 0:02:15]} 17. Rxd4 {[%clk 0:01:48]}  exd4 {[%clk 0:02:14]} 18. Nb5 {[%clk 0:01:47]}  Nh5 {[%clk 0:02:07]} 19. Nxd4 {[%clk 0:01:44]}  Rfe8 {[%clk 0:01:54]} 20. Rg1 {[%clk 0:01:43]}  Qg7 {[%clk 0:01:52]} 21. Qd2 {[%clk 0:01:37]}  Rad8 {[%clk 0:01:50]} 22. Be2 {[%clk 0:01:25]}  c5 {[%clk 0:01:42]} 23. dxc6 {[%clk 0:01:22]}  f5 {[%clk 0:01:37]} 24. c3 {[%clk 0:01:13]}  fxe4 {[%clk 0:01:36]} 25. fxe4 {[%clk 0:01:08]}  Nf6 {[%clk 0:01:36]} 26. Bc4+ {[%clk 0:00:43]}  Kh8 {[%clk 0:01:36]} 27. Qf4 {[%clk 0:00:36]}  Rxe4 {[%clk 0:01:32]} 28. Qf3 {[%clk 0:00:25]}  Rde8 {[%clk 0:01:03]} 29. cxb7 {[%clk 0:00:23]}  Nd7 {[%clk 0:00:37]} 30. h5 {[%clk 0:00:14]}  Qh6+ {[%clk 0:00:30]} 31. Kc2 {[%clk 0:00:13]}  Qf4 {[%clk 0:00:25]} 32. Qxf4 {[%clk 0:00:12]}  Rxf4 {[%clk 0:00:26]} 33. Bb5 {[%clk 0:00:10]}  Rb8 {[%clk 0:00:22]} 34. Bxd7 {[%clk 0:00:10]}  Rxb7 {[%clk 0:00:22]} 35. Bc6 {[%clk 0:00:09]}  Rb6 {[%clk 0:00:20]} 36. hxg6 {[%clk 0:00:09]}  Rxd4 {[%clk 0:00:18]} 37. cxd4 {[%clk 0:00:09]}  Rxc6+ {[%clk 0:00:19]} 38. Kd3 {[%clk 0:00:09]}  hxg6 {[%clk 0:00:19]} 39. d5 {[%clk 0:00:08]}  Rb6 {[%clk 0:00:20]} 40. b3 {[%clk 0:00:07]}  Kg7 {[%clk 0:00:20]} 41. Kd4 {[%clk 0:00:08]}  Kf6 {[%clk 0:00:21]} 42. Kc5 {[%clk 0:00:08]}  Ra6 {[%clk 0:00:22]} 43. a4 {[%clk 0:00:07]}  Ke7 {[%clk 0:00:22]} 44. Rg5 {[%clk 0:00:07]}  Rf6 {[%clk 0:00:20]} 45. Re5+ {[%clk 0:00:07]}  Kd7 {[%clk 0:00:21]} 46. b4 {[%clk 0:00:07]}  Rf1 {[%clk 0:00:21]} 47. b5 {[%clk 0:00:07]}  Rc1+ {[%clk 0:00:21]} 48. Kb4 {[%clk 0:00:06]}  Kd6 {[%clk 0:00:19]} 49. Rg5 {[%clk 0:00:06]}  Rb1+ {[%clk 0:00:15]} 50. Ka5 {[%clk 0:00:06]}  Ra1 {[%clk 0:00:16]} 51. Rxg6+ {[%clk 0:00:06]}  Kxd5 {[%clk 0:00:17]} 52. Rg7 {[%clk 0:00:06]}  Kd6 {[%clk 0:00:17]} 53. Rxa7 {[%clk 0:00:06]}  Rh1 {[%clk 0:00:17]} 54. Kb6 {[%clk 0:00:06]}  Rh8 {[%clk 0:00:16]} 55. Rc7 {[%clk 0:00:06]}  Ra8 {[%clk 0:00:16]} 56. a5 {[%clk 0:00:05]}  Rb8+ {[%clk 0:00:16]} 57. Rb7 {[%clk 0:00:05]}  Rh8 {[%clk 0:00:16]} 58. a6 {[%clk 0:00:05]}  Rh1 {[%clk 0:00:16]} 59. a7 {[%clk 0:00:06]}  Ra1 {[%clk 0:00:17]} 60. Rb8 {[%clk 0:00:06]}  Kd7 {[%clk 0:00:17]} 61. a8=Q {[%clk 0:00:05]} 1-0

[Event "January 9 Late 2024"]
[Site "https://www.chess.com"]
[Date "2024.01.09"]
[Round "1"]
[White "Rosenberg, Evan S"]
[Black "Annaberdiyev, Meylis"]
[Result "0-1"]
[Board "151"]
[TimeControl "180+1"]
[WhiteFideId "2019299"]
[BlackFideId "14000563"]
[WhiteElo "2355"]
[BlackElo "2671"]
[WhiteTeam "USA"]
[BlackTeam "TKM"]
[WhiteClock "0:00:13"]
[BlackClock "0:00:23"]

1. d4 {[%clk 0:03:00]}  Nf6 {[%clk 0:02:57]} 2. Nf3 {[%clk 0:03:00]}  e6 {[%clk 0:02:58]} 3. g3 {[%clk 0:02:59]}  d5 {[%clk 0:02:57]} 4. Bg2 {[%clk 0:02:59]}  Nbd7 {[%clk 0:02:53]} 5. O-O {[%clk 0:02:59]}  b5 {[%clk 0:02:51]} 6. a4 {[%clk 0:02:58]}  b4 {[%clk 0:02:51]} 7. c4 {[%clk 0:02:57]}  bxc3 {[%clk 0:02:50]} 8. Nxc3 {[%clk 0:02:57]}  Bb4 {[%clk 0:02:36]} 9. Bf4 {[%clk 0:02:45]}  Bxc3 {[%clk 0:01:44]} 10. bxc3 {[%clk 0:02:44]}  O-O {[%clk 0:01:44]} 11. Qc2 {[%clk 0:02:43]}  Ba6 {[%clk 0:01:42]} 12. Rfe1 {[%clk 0:02:19]}  c5 {[%clk 0:01:34]} 13. Bd6 {[%clk 0:02:11]}  Re8 {[%clk 0:01:33]} 14. dxc5 {[%clk 0:02:11]}  Ne4 {[%clk 0:01:33]} 15. Nd4 {[%clk 0:02:01]}  Ndxc5 {[%clk 0:01:28]} 16. Bxc5 {[%clk 0:01:57]}  Nxc5 {[%clk 0:01:29]} 17. h4 {[%clk 0:01:33]}  Rc8 {[%clk 0:01:25]} 18. Red1 {[%clk 0:01:24]}  Bc4 {[%clk 0:01:07]} 19. e4 {[%clk 0:01:16]}  e5 {[%clk 0:01:06]} 20. Nf5 {[%clk 0:01:10]}  Bb3 {[%clk 0:01:06]} 21. Qe2 {[%clk 0:01:03]}  Bxd1 {[%clk 0:01:03]} 22. Rxd1 {[%clk 0:01:04]}  d4 {[%clk 0:00:57]} 23. cxd4 {[%clk 0:01:00]}  exd4 {[%clk 0:00:56]} 24. Rxd4 {[%clk 0:01:01]}  Qf6 {[%clk 0:00:51]} 25. Qg4 {[%clk 0:01:00]}  g6 {[%clk 0:00:30]} 26. Rd6 {[%clk 0:00:53]}  Re6 {[%clk 0:00:24]} 27. Rxe6 {[%clk 0:00:45]}  Nxe6 {[%clk 0:00:24]} 28. Kh2 {[%clk 0:00:13]}  h5 {[%clk 0:00:23]} 0-1

[Event "January 9 Late 2024"]
[Site "https://www.chess.com"]
[Date "2024.01.09"]
[Round "1"]
[White "Atanasov, Anthony"]
[Black "Harriott, Tyrell"]
[Result "1-0"]
[Board "152"]
[TimeControl "180+1"]
[WhiteFideId "2623897"]
[BlackFideId "2086484"]
[WhiteElo "2669"]
[BlackElo "2353"]
[WhiteTeam "CAN"]
[BlackTeam "USA"]
[WhiteClock "0:00:23"]
[BlackClock "0:00:46"]

1. e4 {[%clk 0:02:58]}  d5 {[%clk 0:02:38]} 2. exd5 {[%clk 0:02:58]}  Nf6 {[%clk 0:02:37]} 3. Nf3 {[%clk 0:02:42]}  Qxd5 {[%clk 0:02:36]} 4. Nc3 {[%clk 0:02:08]}  Qh5 {[%clk 0:02:35]} 5. d4 {[%clk 0:02:01]}  Bg4 {[%clk 0:02:32]} 6. Be2 {[%clk 0:02:01]}  Nc6 {[%clk 0:02:28]} 7. Be3 {[%clk 0:01:59]}  O-O-O {[%clk 0:02:27]} 8. Qd2 {[%clk 0:01:42]}  e5 {[%clk 0:02:25]} 9. O-O-O {[%clk 0:01:35]}  exd4 {[%clk 0:02:18]} 10. Nxd4 {[%clk 0:01:30]}  Nxd4 {[%clk 0:01:54]} 11. Bxd4 {[%clk 0:01:31]}  c5 {[%clk 0:01:53]} 12. Bxg4+ {[%clk 0:01:19]}  Qxg4 {[%clk 0:01:49]} 13. Nb5 {[%clk 0:01:12]}  a6 {[%clk 0:01:34]} 14. Na7+ {[%clk 0:00:46]}  Kc7 {[%clk 0:01:10]} 15. Be5+ {[%clk 0:00:47]}  Bd6 {[%clk 0:01:06]} 16. Bxd6+ {[%clk 0:00:24]}  Kb6 {[%clk 0:01:04]} 17. Bxc5+ {[%clk 0:00:25]}  Kxc5 {[%clk 0:01:02]} 18. Qa5+ {[%clk 0:00:26]}  b5 {[%clk 0:00:59]} 19. Qc7+ {[%clk 0:00:23]}  Kb4 {[%clk 0:00:46]} 20. Qc3+ {[%clk 0:00:23]} 1-0

[Event "January 9 Late 2024"]
[Site "https://www.chess.com"]
[Date "2024.01.09"]
[Round "1"]
[White "Rosen, Eric"]
[Black "Korol, Dimitry"]
[Result "1-0"]
[Board "156"]
[TimeControl "180+1"]
[WhiteFideId "2032562"]
[BlackFideId "14108003"]
[WhiteElo "2665"]
[BlackElo "2347"]
[WhiteTeam "USA"]
[BlackTeam "UKR"]
[WhiteClock "0:01:17"]
[BlackClock "0:00:00"]

1. e4 {[%clk 0:02:57]}  c5 {[%clk 0:03:00]} 2. Nc3 {[%clk 0:02:54]}  g6 {[%clk 0:02:59]} 3. h4 {[%clk 0:02:54]}  h5 {[%clk 0:02:57]} 4. d4 {[%clk 0:02:54]}  cxd4 {[%clk 0:02:56]} 5. Qxd4 {[%clk 0:02:55]}  Nf6 {[%clk 0:02:56]} 6. Bg5 {[%clk 0:02:55]}  Nc6 {[%clk 0:02:54]} 7. Qd2 {[%clk 0:02:54]}  Bg7 {[%clk 0:02:54]} 8. f3 {[%clk 0:02:54]}  d6 {[%clk 0:02:50]} 9. Bc4 {[%clk 0:02:55]}  Bd7 {[%clk 0:02:37]} 10. Nge2 {[%clk 0:02:54]}  Qa5 {[%clk 0:02:07]} 11. Nf4 {[%clk 0:02:52]}  Ne5 {[%clk 0:01:55]} 12. Bb3 {[%clk 0:02:52]}  O-O {[%clk 0:01:39]} 13. O-O-O {[%clk 0:02:42]}  Bc6 {[%clk 0:00:29]} 14. Kb1 {[%clk 0:02:40]}  Rfc8 {[%clk 0:00:26]} 15. Bxf6 {[%clk 0:02:17]}  exf6 {[%clk 0:00:22]} 16. Ncd5 {[%clk 0:02:05]}  Qd8 {[%clk 0:00:20]} 17. Qe2 {[%clk 0:02:01]}  b5 {[%clk 0:00:19]} 18. g4 {[%clk 0:02:00]}  a5 {[%clk 0:00:17]} 19. c3 {[%clk 0:01:53]}  a4 {[%clk 0:00:17]} 20. Bc2 {[%clk 0:01:53]}  Nc4 {[%clk 0:00:15]} 21. gxh5 {[%clk 0:01:49]}  Bxd5 {[%clk 0:00:14]} 22. Nxd5 {[%clk 0:01:49]}  a3 {[%clk 0:00:12]} 23. b3 {[%clk 0:01:46]}  Nb2 {[%clk 0:00:12]} 24. Rdg1 {[%clk 0:01:47]}  f5 {[%clk 0:00:10]} 25. hxg6 {[%clk 0:01:44]}  Qe8 {[%clk 0:00:09]} 26. h5 {[%clk 0:01:29]}  fxg6 {[%clk 0:00:08]} 27. Rxg6 {[%clk 0:01:27]}  Qe5 {[%clk 0:00:00]} 28. f4 {[%clk 0:01:17]} 1-0

[Event "January 9 Late 2024"]
[Site "https://www.chess.com"]
[Date "2024.01.09"]
[Round "1"]
[White "Biernacki, Mark"]
[Black "Kleiman, Jake"]
[Result "0-1"]
[Board "157"]
[TimeControl "180+1"]
[WhiteFideId "2082322"]
[BlackFideId "2020041"]
[WhiteElo "2345"]
[BlackElo "2665"]
[WhiteTeam "USA"]
[BlackTeam "USA"]
[WhiteClock "0:00:23"]
[BlackClock "0:01:39"]

1. e4 {[%clk 0:03:00]}  e5 {[%clk 0:03:00]} 2. Nc3 {[%clk 0:02:57]}  Nf6 {[%clk 0:02:59]} 3. d4 {[%clk 0:02:58]}  exd4 {[%clk 0:02:59]} 4. Qxd4 {[%clk 0:02:58]}  Nc6 {[%clk 0:02:59]} 5. Qd3 {[%clk 0:02:59]}  Bb4 {[%clk 0:03:00]} 6. Ne2 {[%clk 0:02:53]}  O-O {[%clk 0:03:00]} 7. Bg5 {[%clk 0:02:52]}  Re8 {[%clk 0:02:56]} 8. O-O-O {[%clk 0:02:51]}  h6 {[%clk 0:02:45]} 9. Bh4 {[%clk 0:02:50]}  Ne5 {[%clk 0:02:39]} 10. Qb5 {[%clk 0:02:12]}  Bxc3 {[%clk 0:02:36]} 11. Nxc3 {[%clk 0:02:13]}  Ng6 {[%clk 0:02:36]} 12. Bxf6 {[%clk 0:02:03]}  Qxf6 {[%clk 0:02:37]} 13. Nd5 {[%clk 0:02:02]}  Qg5+ {[%clk 0:02:17]} 14. f4 {[%clk 0:01:59]}  Nxf4 {[%clk 0:02:17]} 15. Nxc7 {[%clk 0:01:59]}  Nd5+ {[%clk 0:02:14]} 16. Kb1 {[%clk 0:01:52]}  Nxc7 {[%clk 0:02:15]} 17. Qc4 {[%clk 0:01:45]}  Qe5 {[%clk 0:02:08]} 18. Bd3 {[%clk 0:01:21]}  b6 {[%clk 0:02:08]} 19. Rhf1 {[%clk 0:01:19]}  Ne6 {[%clk 0:02:01]} 20. Rf5 {[%clk 0:01:11]}  Qc7 {[%clk 0:02:01]} 21. Qb4 {[%clk 0:01:05]}  a5 {[%clk 0:01:44]} 22. Qe1 {[%clk 0:00:48]}  Nc5 {[%clk 0:01:40]} 23. Bc4 {[%clk 0:00:38]}  d5 {[%clk 0:01:40]} 24. Rxf7 {[%clk 0:00:26]}  Qxf7 {[%clk 0:01:38]} 25. Bxd5 {[%clk 0:00:27]}  Be6 {[%clk 0:01:38]} 26. Bxa8 {[%clk 0:00:23]}  Rxa8 {[%clk 0:01:39]} 0-1

[Event "January 9 Late 2024"]
[Site "https://www.chess.com"]
[Date "2024.01.09"]
[Round "1"]
[White "Msellek, Ilyass"]
[Black "Doluhanova, Evgeniya"]
[Result "1-0"]
[Board "158"]
[TimeControl "180+1"]
[WhiteFideId "675938"]
[BlackFideId "14112035"]
[WhiteElo "2664"]
[BlackElo "2342"]
[WhiteTeam "MAR"]
[BlackTeam "UKR"]
[WhiteClock "0:00:52"]
[BlackClock "0:00:05"]

1. d4 {[%clk 0:02:57]}  Nf6 {[%clk 0:02:58]} 2. c4 {[%clk 0:02:58]}  e6 {[%clk 0:02:57]} 3. Nc3 {[%clk 0:02:58]}  Bb4 {[%clk 0:02:57]} 4. e3 {[%clk 0:02:59]}  O-O {[%clk 0:02:56]} 5. Bd3 {[%clk 0:02:59]}  b6 {[%clk 0:02:56]} 6. Ne2 {[%clk 0:02:56]}  Bb7 {[%clk 0:02:56]} 7. O-O {[%clk 0:02:56]}  c5 {[%clk 0:02:57]} 8. a3 {[%clk 0:02:56]}  cxd4 {[%clk 0:02:56]} 9. exd4 {[%clk 0:02:57]}  Be7 {[%clk 0:02:55]} 10. b4 {[%clk 0:02:54]}  a5 {[%clk 0:02:53]} 11. Rb1 {[%clk 0:02:54]}  axb4 {[%clk 0:02:53]} 12. axb4 {[%clk 0:02:55]}  Nc6 {[%clk 0:02:49]} 13. c5 {[%clk 0:02:36]}  bxc5 {[%clk 0:02:40]} 14. dxc5 {[%clk 0:02:34]}  Ne5 {[%clk 0:02:33]} 15. Bc2 {[%clk 0:02:31]}  d6 {[%clk 0:02:30]} 16. Bf4 {[%clk 0:02:32]}  Nfg4 {[%clk 0:01:57]} 17. h3 {[%clk 0:02:25]}  g5 {[%clk 0:01:26]} 18. Bg3 {[%clk 0:02:18]}  Nh6 {[%clk 0:01:23]} 19. Nb5 {[%clk 0:02:13]}  f5 {[%clk 0:01:10]} 20. cxd6 {[%clk 0:02:07]}  Bf6 {[%clk 0:01:08]} 21. f4 {[%clk 0:02:04]}  gxf4 {[%clk 0:00:58]} 22. Bxf4 {[%clk 0:02:04]}  Qb6+ {[%clk 0:00:58]} 23. Ned4 {[%clk 0:02:04]}  Nc6 {[%clk 0:00:40]} 24. Be3 {[%clk 0:01:35]}  Nxd4 {[%clk 0:00:40]} 25. Nxd4 {[%clk 0:01:36]}  Qxd6 {[%clk 0:00:34]} 26. Bb3 {[%clk 0:01:33]}  Nf7 {[%clk 0:00:29]} 27. Nxe6 {[%clk 0:01:24]}  Qc6 {[%clk 0:00:25]} 28. Rf3 {[%clk 0:01:15]}  Rfe8 {[%clk 0:00:22]} 29. b5 {[%clk 0:01:05]}  Qe4 {[%clk 0:00:14]} 30. Nc5 {[%clk 0:00:53]}  Qe7 {[%clk 0:00:12]} 31. Nxb7 {[%clk 0:00:52]}  Qxb7 {[%clk 0:00:05]} 32. Bd5 {[%clk 0:00:52]} 1-0

[Event "January 9 Late 2024"]
[Site "https://www.chess.com"]
[Date "2024.01.09"]
[Round "1"]
[White "Sohier, Julien"]
[Black "Barp, Alberto"]
[Result "0-1"]
[Board "163"]
[TimeControl "180+1"]
[WhiteFideId "645346"]
[BlackFideId "872555"]
[WhiteElo "2334"]
[BlackElo "2658"]
[WhiteTeam "FRA"]
[BlackTeam "ITA"]
[WhiteClock "0:00:17"]
[BlackClock "0:00:07"]

1. e4 {[%clk 0:02:59]}  c5 {[%clk 0:02:24]} 2. Nc3 {[%clk 0:02:58]}  a6 {[%clk 0:02:15]} 3. Nf3 {[%clk 0:02:56]}  b5 {[%clk 0:02:14]} 4. g3 {[%clk 0:02:56]}  Bb7 {[%clk 0:02:14]} 5. Bg2 {[%clk 0:02:56]}  b4 {[%clk 0:02:11]} 6. Na4 {[%clk 0:02:56]}  d6 {[%clk 0:02:05]} 7. d4 {[%clk 0:02:55]}  Nd7 {[%clk 0:01:41]} 8. O-O {[%clk 0:02:48]}  Bxe4 {[%clk 0:01:35]} 9. Re1 {[%clk 0:02:48]}  Ngf6 {[%clk 0:01:33]} 10. Bg5 {[%clk 0:02:46]}  Rc8 {[%clk 0:01:26]} 11. dxc5 {[%clk 0:02:25]}  dxc5 {[%clk 0:01:18]} 12. Bxf6 {[%clk 0:02:10]}  Nxf6 {[%clk 0:01:13]} 13. Qxd8+ {[%clk 0:01:56]}  Kxd8 {[%clk 0:00:51]} 14. Rad1+ {[%clk 0:01:36]}  Ke8 {[%clk 0:00:27]} 15. Ne5 {[%clk 0:01:30]}  Bxg2 {[%clk 0:00:21]} 16. Kxg2 {[%clk 0:01:30]}  e6 {[%clk 0:00:21]} 17. Nb6 {[%clk 0:01:30]}  Rc7 {[%clk 0:00:20]} 18. g4 {[%clk 0:01:09]}  h6 {[%clk 0:00:20]} 19. h4 {[%clk 0:01:09]}  g6 {[%clk 0:00:20]} 20. g5 {[%clk 0:01:08]}  hxg5 {[%clk 0:00:21]} 21. hxg5 {[%clk 0:01:09]}  Nh5 {[%clk 0:00:21]} 22. Ned7 {[%clk 0:00:54]}  Bg7 {[%clk 0:00:21]} 23. b3 {[%clk 0:00:40]}  Ke7 {[%clk 0:00:20]} 24. Nxc5 {[%clk 0:00:31]}  Rxc5 {[%clk 0:00:16]} 25. Rd7+ {[%clk 0:00:30]}  Ke8 {[%clk 0:00:16]} 26. Red1 {[%clk 0:00:29]}  Rd5 {[%clk 0:00:15]} 27. Nxd5 {[%clk 0:00:25]}  Kxd7 {[%clk 0:00:15]} 28. Nxb4+ {[%clk 0:00:25]}  Kc7 {[%clk 0:00:10]} 29. Nxa6+ {[%clk 0:00:24]}  Kb6 {[%clk 0:00:10]} 30. Nb4 {[%clk 0:00:24]}  Rc8 {[%clk 0:00:10]} 31. c4 {[%clk 0:00:24]}  Bf8 {[%clk 0:00:08]} 32. Nd3 {[%clk 0:00:23]}  Be7 {[%clk 0:00:06]} 33. f4 {[%clk 0:00:20]}  Rd8 {[%clk 0:00:07]} 34. Kf3 {[%clk 0:00:20]}  Ng7 {[%clk 0:00:07]} 35. Nf2 {[%clk 0:00:20]}  Rxd1 {[%clk 0:00:06]} 36. Nxd1 {[%clk 0:00:20]}  Nf5 {[%clk 0:00:07]} 37. Ne3 {[%clk 0:00:20]}  Kc5 {[%clk 0:00:05]} 38. Nxf5 {[%clk 0:00:20]}  exf5 {[%clk 0:00:05]} 39. Ke3 {[%clk 0:00:20]}  f6 {[%clk 0:00:05]} 40. gxf6 {[%clk 0:00:20]}  Bxf6 {[%clk 0:00:06]} 41. Kd3 {[%clk 0:00:20]}  Kb4 {[%clk 0:00:06]} 42. Kc2 {[%clk 0:00:18]}  Be7 {[%clk 0:00:06]} 43. a4 {[%clk 0:00:18]}  Bd6 {[%clk 0:00:06]} 44. Kb2 {[%clk 0:00:17]}  Bxf4 {[%clk 0:00:07]} 0-1

[Event "January 9 Late 2024"]
[Site "https://www.chess.com"]
[Date "2024.01.09"]
[Round "1"]
[White "Ibadov, Dashgyn"]
[Black "Mesa Cruz, Juan Carlos"]
[Result "0-1"]
[Board "164"]
[TimeControl "180+1"]
[WhiteFideId "24107514"]
[BlackFideId "6423400"]
[WhiteElo "2657"]
[BlackElo "2334"]
[WhiteTeam "FID"]
[BlackTeam "DOM"]
[WhiteClock "0:00:00"]
[BlackClock "0:00:02"]

1. e4 {[%clk 0:03:00]}  c5 {[%clk 0:02:55]} 2. Nf3 {[%clk 0:03:00]}  d6 {[%clk 0:02:52]} 3. d4 {[%clk 0:02:58]}  cxd4 {[%clk 0:02:53]} 4. Nxd4 {[%clk 0:02:58]}  Nf6 {[%clk 0:02:54]} 5. Nc3 {[%clk 0:02:58]}  a6 {[%clk 0:02:54]} 6. Be2 {[%clk 0:02:57]}  e5 {[%clk 0:02:55]} 7. Nf3 {[%clk 0:02:54]}  Be7 {[%clk 0:02:54]} 8. Bg5 {[%clk 0:02:50]}  Be6 {[%clk 0:02:53]} 9. O-O {[%clk 0:02:48]}  Nbd7 {[%clk 0:02:52]} 10. Re1 {[%clk 0:02:38]}  Rc8 {[%clk 0:02:50]} 11. Nd2 {[%clk 0:02:36]}  O-O {[%clk 0:02:46]} 12. Nf1 {[%clk 0:02:30]}  Rxc3 {[%clk 0:02:43]} 13. bxc3 {[%clk 0:02:23]}  Nxe4 {[%clk 0:02:44]} 14. Bxe7 {[%clk 0:02:23]}  Qxe7 {[%clk 0:02:43]} 15. Bf3 {[%clk 0:02:17]}  Nxc3 {[%clk 0:02:29]} 16. Qd2 {[%clk 0:02:17]}  Na4 {[%clk 0:01:22]} 17. Bxb7 {[%clk 0:02:10]}  Ndc5 {[%clk 0:01:22]} 18. Bf3 {[%clk 0:02:10]}  f5 {[%clk 0:00:58]} 19. Bd5 {[%clk 0:02:01]}  f4 {[%clk 0:00:59]} 20. c4 {[%clk 0:01:43]}  Kh8 {[%clk 0:00:52]} 21. Rab1 {[%clk 0:01:38]}  Bf5 {[%clk 0:00:42]} 22. f3 {[%clk 0:01:28]}  Bxb1 {[%clk 0:00:38]} 23. Rxb1 {[%clk 0:01:27]}  Qa7 {[%clk 0:00:38]} 24. Kh1 {[%clk 0:01:18]}  Rb8 {[%clk 0:00:37]} 25. Re1 {[%clk 0:01:07]}  Qb6 {[%clk 0:00:36]} 26. h3 {[%clk 0:01:02]}  Qb2 {[%clk 0:00:36]} 27. Qa5 {[%clk 0:01:00]}  Qf2 {[%clk 0:00:27]} 28. Qc7 {[%clk 0:00:57]}  Rf8 {[%clk 0:00:10]} 29. Qxd6 {[%clk 0:00:56]}  Nd7 {[%clk 0:00:05]} 30. Rxe5 {[%clk 0:00:20]}  Qxf1+ {[%clk 0:00:05]} 31. Kh2 {[%clk 0:00:21]}  Nac5 {[%clk 0:00:03]} 32. Rg5 {[%clk 0:00:15]}  Qa1 {[%clk 0:00:02]} 33. Rg4 {[%clk 0:00:03]}  Qf6 {[%clk 0:00:03]} 34. Qc7 {[%clk 0:00:00]}  h5 {[%clk 0:00:02]} 0-1